bitfinex/quotes_ETHUSD_20251119
["timestamp","ask_amount","ask_price","bid_price","bid_amount"]
[1763543924963,0.5492,3071.1,3071.0,0.001]
[1763543925826,0.954704,3071.1,3071.0,0.001]
[1763543926073,1.25198839,3071.1,3071.0,0.001]
[1763543926252,1.38259359,3071.1,3071.0,0.001]
[1763543926565,2.06858254,3071.1,3071.0,0.001]
[1763543926870,2.36614006,3071.1,3071.0,0.001]
[1763543927226,1.96063606,3071.1,3071.0,0.001]
[1763543927426,1.27464711,3071.1,3070.8,0.001]
[1763543927663,0.5494,3071.0,3070.6,0.001]
[1763543927842,7.11000035,3070.7,3070.6,0.001]
[1763543928037,7.82100039,3070.7,3070.6,0.001]
[1763543928236,8.30900039,3070.7,3070.6,0.001]
[1763543928663,0.90699264,3070.6,3069.6,0.4896]
[1763543928863,1.39749264,3070.6,3069.6,0.4896]
[1763543929066,1.45639264,3070.6,3069.6,0.4896]
[1763543929250,0.0589,3070.3,3069.2,0.1947]
[1763543929457,0.90699264,3069.8,3069.2,0.1947]
[1763543930433,0.90699264,3069.8,3068.8,0.4896]
[1763543930434,0.4664,3069.6,3068.8,0.4896]
[1763543931057,0.97780676,3069.6,3068.8,0.4896]
[1763543931258,1.06060676,3069.6,3068.8,0.4896]
[1763543931579,0.97780676,3069.6,3068.8,0.4896]
[1763543931750,1.2490867,3069.6,3068.8,0.4896]
[1763543933175,1.2490867,3069.6,3069.5,0.4832]
[1763543933176,0.51140676,3069.6,3069.5,0.4832]
[1763543933336,0.51140676,3069.6,3069.5,0.9728]
[1763543933747,0.90699264,3070.3,3069.5,0.9728]
[1763543934475,0.90699264,3070.3,3069.6,0.4896]
[1763543935244,1.59433268,3070.3,3069.5,0.001]
[1763543935572,1.59433268,3070.3,3069.5,0.4906]
[1763543936547,0.9728,3070.6,3069.5,0.4906]
[1763543936777,0.1795,3070.8,3070.2,0.4822]
[1763543936978,0.51127237,3070.4,3070.2,0.4822]
[1763543938772,0.547828,3070.4,3069.8,0.4896]
[1763543938966,0.0589,3070.3,3069.8,0.4896]
[1763543939146,0.51127237,3070.4,3069.8,0.4896]
[1763543939778,0.2376,3069.9,3069.5,0.001]
[1763543939980,0.03655563,3069.8,3069.5,0.001]
[1763543940146,0.03655563,3069.7,3069.5,0.001]
[1763543940343,0.03655563,3069.8,3069.5,0.001]
[1763543940677,0.96709264,3069.6,3069.5,0.001]
[1763543940844,1.74970387,3069.6,3069.5,0.001]
[1763543941044,2.23590387,3069.6,3069.5,0.001]
[1763543941579,0.405504,3069.3,3069.1,0.001]
[1763543941778,7.33600035,3069.2,3068.8,0.001]
[1763543941949,0.0601,3068.9,3068.8,0.001]
[1763543942280,0.90699264,3069.1,3068.8,0.001]
[1763543942448,1.59433268,3069.1,3068.8,0.001]
[1763543944680,1.59353268,3069.1,3068.8,0.001]
[1763543945178,5.96640771,3069.7,3069.0,0.4822]
[1763543945386,6.45600771,3069.7,3069.1,0.4822]
[1763543945682,5.96640771,3069.7,3069.1,0.4822]
[1763543945848,5.96640771,3069.7,3069.2,0.1947]
[1763543946048,6.62987848,3069.7,3069.2,0.1947]
[1763543946280,6.62987848,3069.7,3068.8,0.001]
[1763543946454,0.94354827,3069.6,3068.8,0.4906]
[1763543947356,0.51144571,3069.5,3068.8,0.4906]
[1763543947555,0.03655563,3069.4,3068.8,0.4906]
[1763543947860,0.03655563,3069.5,3068.8,0.001]
[1763543948056,0.50515563,3069.5,3068.8,0.001]
[1763543948253,0.4686,3069.5,3068.8,0.001]
[1763543949268,0.76405718,3069.5,3068.8,0.001]
[1763543949483,0.16710498,3069.4,3068.8,0.001]
[1763543949777,0.46256216,3069.4,3068.8,0.001]
[1763543950275,0.51146962,3069.3,3068.8,0.001]
[1763543950452,0.80695349,3069.3,3068.8,0.001]
[1763543950659,0.80695349,3069.3,3068.8,0.4829]
[1763543951375,0.0818,3068.9,3068.8,0.001]
[1763543951778,0.84198387,3068.9,3068.0,0.1947]
[1763543951985,0.90699264,3068.5,3068.0,0.1947]
[1763543952168,0.98384552,3068.4,3068.0,0.1947]
[1763543952367,0.29650548,3068.3,3068.0,0.1947]
[1763543952572,0.29650548,3068.2,3068.0,0.1947]
[1763543952767,0.29650548,3068.1,3068.0,0.1947]
[1763543953150,0.29650548,3068.1,3067.9,0.1947]
[1763543953345,0.29650548,3068.0,3067.9,0.1947]
[1763543953581,0.29650548,3068.0,3066.0,3.90261578]
[1763543953781,0.29650548,3068.0,3067.2,0.4819]
[1763543953782,0.29650548,3067.9,3067.2,0.4819]
[1763543953983,0.29650548,3067.8,3067.2,0.4819]
[1763543954149,0.29727934,3067.7,3067.2,0.4819]
[1763543954352,0.29727934,3067.6,3067.2,0.4819]
[1763543954677,0.29727934,3067.5,3067.2,0.4819]
[1763543954878,0.29727934,3067.4,3067.2,0.4819]
[1763543955083,0.5116832,3067.5,3067.2,0.4819]
[1763543955281,0.5116832,3067.5,3067.3,0.405504]
[1763543955458,0.2971097,3067.8,3067.5,0.405504]
[1763543955663,0.51165383,3068.2,3067.5,0.405504]
[1763543955874,0.29712217,3068.1,3068.0,0.4747]
[1763543956055,0.29712217,3068.1,3068.0,0.4819]
[1763543956282,0.29712217,3068.1,3068.0,0.9566]
[1763543957955,0.29712217,3068.1,3068.0,1.362104]
[1763543958156,0.68561899,3068.8,3068.1,0.405504]
[1763543958383,0.2972306,3068.7,3068.2,0.887404]
[1763543958581,0.85807625,3069.1,3068.6,0.4747]
[1763543958582,0.68561899,3069.0,3068.6,0.4747]
[1763543958894,0.29732929,3068.9,3068.6,0.4747]
[1763543959207,0.29732929,3068.8,3068.6,0.9566]
[1763543959396,0.51152564,3069.0,3068.6,0.4819]
[1763543959397,0.29732929,3068.7,3068.6,0.4819]
[1763543959580,0.29732929,3068.7,3068.1,0.1857]
[1763543959782,1.19714463,3069.0,3068.6,0.4747]
[1763543959980,0.29739982,3068.9,3068.6,0.4747]
[1763543960179,0.29739982,3068.8,3068.6,0.9566]
[1763543960489,0.29739982,3068.7,3068.6,0.9566]
[1763543960689,0.29739982,3068.7,3068.6,0.4747]
[1763543961286,0.29739982,3068.7,3068.6,0.9566]
[1763543962990,0.29743659,3068.7,3068.6,0.9566]
[1763543963197,0.29743659,3068.7,3068.6,0.4747]
[1763543963396,0.29743659,3068.7,3068.1,0.1857]
[1763543963586,0.33401201,3068.6,3067.3,0.001]
[1763543963762,0.29745638,3068.5,3067.7,0.4612]
[1763543963968,0.29745638,3068.4,3067.7,0.4612]
[1763543964286,0.2974086,3068.3,3067.7,0.4612]
[1763543964489,0.2974086,3068.2,3067.7,0.4612]
[1763543964688,0.2974086,3068.1,3067.7,0.4612]
[1763543964997,0.2974086,3068.1,3067.3,0.001]
[1763543964998,0.29744975,3068.0,3067.3,0.001]
[1763543965197,0.29744975,3067.9,3067.3,0.001]
[1763543965500,0.29744975,3067.8,3067.3,0.4622]
[1763543965671,0.29744975,3067.7,3067.3,0.4622]
[1763543965870,0.68561899,3068.2,3067.9,0.455]
[1763543966071,0.29741974,3068.1,3067.9,0.455]
[1763543966272,0.29741974,3068.0,3067.9,0.455]
[1763543966887,0.29741974,3068.0,3067.9,0.9162]
[1763543967068,0.68561899,3068.6,3067.9,0.9162]
[1763543967400,1.49471575,3068.5,3067.9,0.455]
[1763543967702,0.98311771,3068.4,3067.9,0.9162]
[1763543967880,0.29749872,3068.3,3067.9,0.9162]
[1763543968084,0.29749872,3068.2,3067.9,0.455]
[1763543968273,0.29749872,3068.1,3068.0,0.4612]
[1763543968804,0.29749872,3068.1,3068.0,0.9162]
[1763543969471,0.29669872,3068.1,3068.0,0.9162]
[1763543970093,0.29669872,3068.1,3068.0,0.455]
[1763543970967,0.80828912,3068.1,3068.0,0.455]
[1763543973307,0.80828912,3068.1,3068.0,0.9162]
[1763543975275,0.5115904,3068.1,3068.0,1.321704]
[1763543975678,0.37466041,3069.2,3068.0,1.321704]
[1763543975679,0.85807625,3069.3,3068.1,0.405504]
[1763543975910,0.68815004,3069.4,3068.6,0.455]
[1763543976206,0.51148734,3069.1,3068.6,0.455]
[1763543976394,0.51148734,3069.1,3069.0,0.1973]
[1763543976597,0.51148734,3069.1,3069.0,0.6523]
[1763543976795,0.51148734,3069.1,3069.0,1.1135]
[1763543976973,0.51148734,3069.1,3069.0,1.519004]
[1763543977389,0.002,3069.2,3069.1,0.405504]
[1763543977707,0.51334237,3069.9,3069.5,0.405504]
[1763543978010,0.51334237,3069.9,3069.8,0.899404]
[1763543978385,0.51334237,3069.9,3069.8,1.379804]
[1763543978912,0.002,3070.2,3069.9,0.405504]
[1763543979077,0.002,3070.2,3070.1,1.098204]
[1763543979608,0.002,3070.2,3070.1,1.578604]
[1763543980409,0.002,3070.2,3070.1,1.1731]
[1763543980582,0.002,3070.2,3070.1,0.6927]
[1763543981310,0.002,3070.2,3070.1,0.4939]
[1763543981515,0.4975,3070.2,3069.4,0.4804]
[1763543981698,0.002,3070.2,3069.4,0.4804]
[1763543984592,0.51127819,3070.1,3069.4,0.4804]
[1763543985516,0.51127819,3070.1,3070.0,0.4939]
[1763543986023,0.002,3070.2,3069.7,0.405504]
[1763543986327,0.51125977,3070.1,3069.7,0.405504]
[1763543986490,0.002,3070.2,3069.4,0.405504]
[1763543986686,0.002,3070.2,3069.7,0.4804]
[1763543989393,0.51327965,3070.2,3069.7,0.4804]
[1763543989599,0.51327965,3070.2,3070.1,1.098204]
[1763543989905,0.1795,3071.4,3070.1,1.098204]
[1763543989906,0.4507,3072.3,3070.2,0.405504]
[1763543990249,0.6599,3073.0,3070.8,0.405504]
[1763543990534,0.4507,3072.6,3071.1,0.6927]
[1763543990894,0.4507,3072.6,3071.1,1.1731]
[1763543991140,1.08649264,3073.0,3071.1,1.1731]
[1763543991310,0.4507,3072.3,3071.1,1.1731]
[1763543993146,0.51099781,3071.8,3071.1,1.1731]
[1763543993919,0.51099781,3071.8,3071.1,0.405504]
[1763543994115,0.4507,3071.7,3071.1,0.405504]
[1763543994341,0.4507,3071.7,3071.1,0.899404]
[1763543994542,0.0012,3071.2,3071.1,0.899404]
[1763543995118,0.0012,3071.2,3071.1,1.379804]
[1763543996140,0.0012,3071.2,3071.1,0.899404]
[1763543996542,0.0012,3071.2,3071.1,1.379804]
[1763544003152,0.0012,3071.2,3071.1,1.73866562]
[1763544003360,0.002,3071.9,3071.4,0.405504]
[1763544003656,0.002,3073.3,3071.9,0.405504]
[1763544003864,0.002,3073.3,3073.0,1.098204]
[1763544004316,0.002,3073.3,3073.0,1.904904]
[1763544004423,0.002,3073.3,3073.0,2.0953944]
[1763544004622,0.002,3073.3,3073.1,0.731804]
[1763544004929,0.1819,3075.1,3073.3,0.731804]
[1763544005127,0.1819,3075.1,3073.4,1.706104]
[1763544005327,0.4507,3074.9,3073.4,1.706104]
[1763544006063,0.1819,3075.1,3073.4,1.706104]
[1763544006064,0.4507,3074.5,3073.4,1.706104]
[1763544006960,0.4507,3074.5,3073.4,1.379804]
[1763544007339,0.1819,3075.1,3073.4,1.379804]
[1763544007758,0.484,3074.9,3073.4,1.379804]
[1763544008278,0.1819,3075.1,3073.4,1.379804]
[1763544008484,0.484,3074.7,3073.4,1.379804]
[1763544010049,0.484,3074.5,3073.4,0.899404]
[1763544010274,0.18,3073.9,3073.4,0.4752]
[1763544010480,0.18,3074.1,3073.4,1.370604]
[1763544011151,0.484,3074.6,3073.4,1.370604]
[1763544011488,0.484,3075.0,3073.4,1.370604]
[1763544011684,0.002,3073.9,3073.4,1.370604]
[1763544015071,0.002,3073.9,3073.4,1.40314125]
[1763544015271,0.1795,3076.1,3073.4,1.40314125]
[1763544015272,1.34207625,3076.9,3074.2,0.405504]
[1763544015471,0.484,3076.5,3075.1,0.405504]
[1763544015650,0.51036538,3075.9,3075.1,0.405504]
[1763544015851,0.484,3076.5,3075.3,0.405504]
[1763544016251,0.51030742,3076.2,3075.3,0.405504]
[1763544016579,0.51030742,3076.2,3075.3,0.895404]
[1763544016772,0.484,3076.4,3075.3,0.895404]
[1763544017177,0.484,3076.7,3075.5,0.405504]
[1763544017697,0.18,3076.8,3075.7,0.405504]
[1763544017894,0.18,3077.1,3075.7,0.405504]
[1763544018097,0.18,3077.1,3075.9,0.405504]
[1763544018301,0.484,3077.0,3075.9,0.405504]
[1763544018510,0.18,3077.1,3075.2,0.1893]
[1763544018511,0.18,3077.1,3075.3,0.405504]
[1763544018683,0.18,3077.1,3076.1,0.405504]
[1763544018864,0.664,3077.1,3076.1,0.594804]
[1763544019307,0.484,3077.0,3075.5,0.405504]
[1763544019457,0.4832,3077.0,3075.5,0.895404]
[1763544019656,1.39019264,3077.0,3075.5,0.895404]
[1763544019863,0.80220317,3076.9,3075.7,0.405504]
[1763544020070,0.03655563,3076.8,3075.7,0.405504]
[1763544020395,0.51024346,3076.7,3075.3,0.405504]
[1763544020581,0.18,3077.1,3075.9,0.405504]
[1763544021090,0.18,3077.1,3076.1,0.405504]
[1763544021258,0.18,3077.1,3075.8,0.4899]
[1763544021259,1.14465079,3078.6,3077.0,0.6645]
[1763544021457,0.85807625,3078.7,3077.5,0.4752]
[1763544021693,0.85807625,3078.7,3076.2,0.53293539]
[1763544021694,0.1941,3077.6,3076.1,0.0473]
[1763544021859,6.45183905,3077.4,3076.1,0.0473]
[1763544022060,0.03655563,3077.4,3076.2,0.4899]
[1763544022301,0.1941,3077.6,3076.1,0.0473]
[1763544022302,6.93583905,3077.3,3076.1,0.0473]
[1763544022660,0.484,3077.2,3076.1,0.0473]
[1763544023092,0.484,3077.2,3075.8,0.4899]
[1763544023404,0.484,3077.2,3075.9,0.405504]
[1763544023810,0.484,3077.2,3075.4,0.4665]
[1763544023811,0.03655563,3077.1,3075.4,0.4665]
[1763544024012,0.69358391,3077.1,3075.4,0.4665]
[1763544024210,0.4835,3077.0,3075.0,0.1893]
[1763544024503,0.4835,3077.0,3075.3,0.405504]
[1763544024678,0.23545563,3076.9,3075.3,0.405504]
[1763544024875,0.23545563,3076.9,3075.0,0.6558]
[1763544024876,0.23545563,3076.9,3075.0,0.1893]
[1763544025073,6.45183905,3076.7,3075.0,0.1893]
[1763544025310,0.69353391,3076.6,3075.1,0.49901926]
[1763544025609,0.4835,3076.8,3075.2,0.405504]
[1763544026100,0.4835,3076.8,3075.2,0.872004]
[1763544026272,0.4835,3076.8,3075.2,0.4665]
[1763544026478,0.4835,3076.8,3075.3,0.03251715]
[1763544026696,0.4835,3076.8,3075.2,0.4665]
[1763544026903,0.90699264,3076.5,3075.0,0.1893]
[1763544027075,0.73588317,3076.4,3075.0,0.1893]
[1763544027281,0.4835,3076.3,3075.0,0.1893]
[1763544027677,0.52005563,3076.3,3075.1,0.405504]
[1763544027879,0.4835,3076.3,3075.0,0.1893]
[1763544028079,0.90699264,3075.9,3074.2,0.4665]
[1763544028280,0.73588317,3075.8,3074.3,0.03252772]
[1763544028506,0.73588317,3076.4,3074.5,0.405504]
[1763544028711,0.4835,3076.6,3074.6,0.405504]
[1763544028900,0.4835,3076.6,3074.6,0.872004]
[1763544029097,0.51028223,3076.0,3074.6,0.872004]
[1763544029308,0.4835,3076.2,3074.8,0.405504]
[1763544029480,0.4835,3076.6,3075.0,0.406504]
[1763544029680,0.4835,3076.6,3075.2,0.405504]
[1763544029884,0.4835,3076.6,3075.3,0.03251715]
[1763544030207,0.4835,3076.6,3075.3,0.49901715]
[1763544030990,0.4835,3076.6,3075.4,0.405504]
[1763544031190,0.4835,3077.0,3075.5,0.49901503]
[1763544031394,0.4835,3076.8,3075.5,0.49901503]
[1763544031592,0.4835,3077.1,3075.6,0.405504]
[1763544031791,0.4835,3077.1,3075.8,0.405504]
[1763544032011,0.4835,3076.8,3075.8,0.405504]
[1763544032617,0.51020273,3076.6,3075.3,0.405504]
[1763544033012,0.51020273,3076.6,3075.5,0.405504]
[1763544033315,6.45183905,3077.3,3075.7,0.405504]
[1763544033316,0.4835,3077.3,3075.7,0.405504]
[1763544033521,0.51017757,3076.5,3075.9,0.405504]
[1763544033823,0.4835,3077.3,3076.0,0.03250975]
[1763544034121,0.002,3077.5,3076.5,0.405504]
[1763544034331,0.002,3077.5,3076.7,0.405504]
[1763544034812,0.002,3077.5,3077.4,0.605104]
[1763544035002,0.002,3077.5,3077.4,0.405504]
[1763544035605,0.9657,3077.5,3076.3,0.4665]
[1763544035807,0.002,3077.5,3076.4,0.43800952]
[1763544036183,0.002,3077.5,3076.6,0.405504]
[1763544036513,0.002,3077.5,3076.8,0.405504]
[1763544036715,0.002,3077.5,3076.5,0.872004]
[1763544036917,0.51200036,3077.5,3076.5,0.872004]
[1763544037217,0.51200036,3077.5,3076.7,0.405504]
[1763544037994,0.51200036,3077.5,3076.9,0.405504]
[1763544038386,0.51200036,3077.5,3076.6,0.405504]
[1763544038727,0.002,3077.9,3077.5,0.405504]
[1763544039334,0.002,3077.9,3077.4,0.1805]
[1763544039493,0.002,3077.9,3076.2,0.90699264]
[1763544039494,0.4892,3077.5,3076.4,0.4922]
[1763544039692,0.4892,3077.5,3076.5,0.405504]
[1763544039916,0.4892,3077.5,3076.7,0.405504]
[1763544040243,0.1872,3077.9,3076.7,0.405504]
[1763544040393,0.1872,3077.9,3076.9,0.405504]
[1763544040589,0.002,3077.9,3076.9,0.405504]
[1763544040804,0.002,3077.9,3077.1,0.405504]
[1763544041228,0.002,3077.9,3077.2,0.586004]
[1763544041393,0.002,3077.9,3077.3,0.4922]
[1763544042125,0.002,3077.9,3077.4,0.405504]
[1763544042325,0.002,3077.9,3077.8,0.864704]
[1763544043031,0.002,3077.9,3077.8,0.405504]
[1763544043217,0.002,3077.9,3077.8,0.864704]
[1763544043406,0.002,3077.9,3077.8,1.356904]
[1763544043598,0.002,3077.9,3077.8,0.864704]
[1763544044530,0.0012,3077.9,3077.8,0.864704]
[1763544045030,0.0012,3077.9,3077.8,1.356904]
[1763544046317,0.0012,3077.9,3077.8,0.405504]
[1763544047021,0.0012,3077.9,3077.4,0.4922]
[1763544047358,0.0012,3077.9,3077.5,0.405504]
[1763544048142,0.3117,3077.6,3076.6,0.001]
[1763544048352,0.1865,3077.5,3076.6,0.52570341]
[1763544048643,0.1865,3077.5,3076.6,0.4932]
[1763544049020,0.6688,3077.5,3076.6,0.001]
[1763544049422,0.5092,3076.7,3076.6,0.001]
[1763544049926,0.9915,3076.7,3076.6,0.001]
[1763544050745,0.5092,3076.7,3076.6,0.001]
[1763544051323,0.4823,3077.1,3076.6,0.001]
[1763544051529,0.1852,3076.9,3076.6,0.001]
[1763544052145,0.6675,3076.9,3076.6,0.001]
[1763544056751,0.4892,3076.7,3076.6,0.001]
[1763544057134,0.9715,3076.7,3076.6,0.001]
[1763544059827,1.48164759,3076.7,3076.6,0.001]
[1763544060029,1.64833235,3076.7,3076.6,0.001]
[1763544060433,7.99224669,3076.7,3076.6,0.001]
[1763544060958,0.0251,3076.4,3076.0,0.001]
[1763544061151,1.39159264,3076.1,3076.0,0.001]
[1763544061663,1.87389264,3076.1,3076.0,0.001]
[1763544061887,2.65598883,3076.1,3075.0,0.001]
[1763544062033,0.2149,3075.1,3075.0,0.001]
[1763544062232,0.6972,3075.1,3075.0,0.001]
[1763544063488,1.60419264,3075.1,3075.0,0.001]
[1763544063760,1.20767441,3075.1,3075.0,0.001]
[1763544063968,0.0297,3075.1,3075.0,0.001]
[1763544064152,0.1852,3075.4,3075.0,0.001]
[1763544064342,0.4823,3075.3,3075.0,0.001]
[1763544065151,0.1852,3075.6,3075.0,0.001]
[1763544065351,0.6675,3076.3,3075.1,0.1805]
[1763544065555,1.26220693,3076.3,3075.9,0.001]
[1763544065862,0.4823,3076.2,3075.9,0.001]
[1763544066064,0.4892,3076.0,3075.9,0.001]
[1763544066442,0.9715,3076.0,3075.9,0.001]
[1763544066650,0.9715,3076.0,3075.0,0.001]
[1763544066947,0.0387,3075.1,3075.0,0.001]
[1763544067265,0.521,3075.1,3075.0,0.001]
[1763544067949,0.0387,3075.1,3075.0,0.001]
[1763544068174,0.4574,3075.4,3075.0,0.001]
[1763544068870,0.4574,3075.7,3075.1,0.1805]
[1763544069455,0.1852,3076.3,3075.2,0.405504]
[1763544070168,1.09219264,3076.3,3075.0,0.001]
[1763544070673,0.1852,3076.3,3075.0,0.001]
[1763544070867,0.61322693,3076.2,3075.0,0.001]
[1763544071169,0.61322693,3076.2,3075.2,0.405504]
[1763544071369,0.51031646,3076.0,3075.2,0.405504]
[1763544071670,0.4574,3076.1,3075.0,0.001]
[1763544071861,0.51032028,3075.9,3075.0,0.001]
[1763544072073,0.4574,3076.2,3075.0,0.001]
[1763544074750,0.4528,3075.1,3075.0,0.001]
[1763544075161,1.4205794,3075.1,3075.0,0.001]
[1763544075771,0.9102,3075.1,3075.0,0.001]
[1763544076479,0.4528,3075.1,3075.0,0.001]
[1763544077655,0.9102,3075.1,3075.0,0.001]
[1763544077856,0.4574,3075.5,3075.0,0.001]
[1763544078681,0.4528,3075.1,3075.0,0.001]
[1763544079259,0.9102,3075.1,3075.0,0.001]
[1763544080490,1.09191926,3075.1,3075.0,0.001]
[1763544085409,0.9102,3075.1,3075.0,0.001]
[1763544085613,0.4528,3075.1,3075.0,0.001]
[1763544086016,5.94906929,3075.9,3075.0,0.001]
[1763544086017,0.002,3075.9,3075.0,0.001]
[1763544086209,0.4909,3075.7,3075.0,0.001]
[1763544087233,0.4843,3075.1,3075.0,0.001]
[1763544087610,0.9752,3075.1,3075.0,0.001]
[1763544087824,1.88219264,3075.1,3075.0,0.001]
[1763544088024,1.88219264,3075.1,3074.6,0.001]
[1763544088025,3.3900408,3075.1,3074.6,0.001]
[1763544088233,0.2183,3074.7,3074.6,0.001]
[1763544088736,0.7092,3074.7,3074.6,0.001]
[1763544089450,8.07380249,3074.7,3074.6,0.001]
[1763544089652,8.37429774,3074.7,3074.6,0.001]
[1763544090152,9.06310248,3074.7,3074.6,0.001]
[1763544090448,0.0377,3073.1,3072.0,0.17013464]
[1763544090669,0.0377,3073.1,3070.5,0.09999999]
[1763544090670,5.94706929,3072.1,3069.5,9.2759892]
[1763544090802,30.0,3072.3,3068.0,1.66035279]
[1763544090803,5.94706929,3069.6,3068.1,0.1828]
[1763544091003,5.94706929,3069.6,3068.0,7.60338129]
[1763544091004,2.28930158,3069.2,3068.0,0.001]
[1763544091225,1.71926324,3068.3,3068.0,0.001]
[1763544091456,1.13728654,3068.1,3068.0,0.001]
[1763544091703,0.68880474,3068.1,3067.6,0.01338014]
[1763544091941,1.70568234,3067.8,3067.6,0.01338014]
[1763544092099,0.68880474,3067.7,3067.1,0.1828]
[1763544092306,2.84276814,3067.4,3067.1,0.1828]
[1763544092610,0.68880474,3067.4,3067.1,0.1828]
[1763544092815,0.68880474,3067.3,3067.2,0.4547]
[1763544093332,3.51703297,3067.3,3067.2,0.4547]
[1763544093508,0.68880474,3067.3,3067.1,0.1828]
[1763544093696,0.68880474,3067.2,3067.1,0.1828]
[1763544093896,0.68880474,3067.2,3067.1,0.6375]
[1763544094514,4.64794993,3067.2,3067.1,0.6375]
[1763544095179,5.87275515,3067.8,3067.1,0.6375]
[1763544095321,1.74735187,3067.5,3067.2,0.860204]
[1763544095850,5.87275515,3068.7,3067.4,0.405504]
[1763544096029,0.8411144,3067.5,3067.4,0.405504]
[1763544096230,0.8411144,3067.5,3067.2,0.405504]
[1763544096439,0.8411144,3067.6,3067.2,0.405504]
[1763544096741,0.8411144,3067.6,3067.4,0.405504]
[1763544097148,0.8411144,3067.9,3067.6,0.405504]
[1763544097362,0.8411144,3068.0,3067.2,0.860204]
[1763544097568,0.8411144,3067.9,3067.2,0.4547]
[1763544097871,1.12148587,3067.4,3066.7,0.1965]
[1763544098073,0.83833602,3067.2,3066.7,0.1965]
[1763544098370,0.83833602,3067.4,3066.7,0.1965]
[1763544099564,0.83833602,3067.5,3066.7,0.1965]
[1763544100154,0.51171551,3067.4,3066.7,0.1965]
[1763544100969,1.35005153,3067.4,3066.7,0.1965]
[1763544101170,0.51171551,3067.4,3066.7,0.14645]
[1763544101524,1.35005153,3067.4,3066.6,0.001]
[1763544101860,0.83833602,3067.8,3067.3,0.1534]
[1763544102051,0.51168559,3067.8,3067.3,0.1534]
[1763544102245,0.83833602,3068.1,3067.4,0.4804]
[1763544102462,1.34996271,3068.2,3067.4,0.4804]
[1763544102961,1.83466271,3068.2,3066.9,0.4804]
[1763544103169,0.4847,3068.1,3066.9,0.4804]
[1763544103342,1.32303602,3068.1,3066.6,0.406504]
[1763544103544,1.32303602,3068.1,3066.6,0.001]
[1763544103545,0.83833602,3067.8,3066.6,0.001]
[1763544103849,0.83833602,3067.6,3066.6,0.001]
[1763544104227,0.4847,3067.5,3066.6,0.001]
[1763544104841,1.32303602,3067.5,3066.6,0.001]
[1763544105361,0.4847,3067.4,3066.6,0.001]
[1763544105852,0.1935,3066.7,3066.6,0.001]
[1763544106553,1.1064,3066.7,3066.6,0.001]
[1763544106863,0.6222,3066.7,3066.6,0.001]
[1763544107364,1.10049264,3067.0,3066.6,0.001]
[1763544107365,0.66652134,3066.8,3066.6,0.001]
[1763544107574,0.1935,3067.0,3066.6,0.001]
[1763544107575,0.66652134,3066.9,3066.6,0.001]
[1763544107860,0.4287,3066.7,3066.6,0.001]
[1763544108035,1.09520477,3066.7,3066.6,0.001]
[1763544108244,1.57940477,3066.7,3066.6,0.001]
[1763544109862,2.41774079,3066.7,3066.6,0.001]
[1763544110073,3.32473343,3066.7,3066.6,0.001]
[1763544110382,2.48639741,3066.7,3066.6,0.001]
[1763544110677,2.40726577,3066.7,3066.5,0.001]
[1763544110977,0.66650477,3066.6,3066.5,0.001]
[1763544111139,0.66650477,3066.6,3065.6,0.4804]
[1763544111340,0.66650477,3066.5,3065.9,0.1965]
[1763544111665,0.83376836,3067.1,3066.5,0.455]
[1763544111962,0.66758194,3067.0,3066.5,0.455]
[1763544112127,0.66758194,3066.9,3066.5,0.455]
[1763544112327,0.66758194,3066.8,3066.0,0.885904]
[1763544112557,0.66758194,3066.7,3066.0,0.885904]
[1763544112762,0.66758194,3066.6,3066.0,0.405504]
[1763544112931,0.83376836,3067.0,3066.1,0.4804]
[1763544113353,0.66831442,3066.9,3066.5,0.455]
[1763544113466,0.83376836,3067.4,3066.2,0.405504]
[1763544113664,0.66937093,3067.3,3066.8,0.455]
[1763544113834,0.66937093,3067.2,3066.8,0.455]
[1763544114037,0.66937093,3067.1,3066.8,0.455]
[1763544114263,0.83376836,3067.8,3067.0,0.405504]
[1763544114439,0.83376836,3068.3,3067.3,0.6515]
[1763544114758,0.67072913,3068.2,3067.3,0.6515]
[1763544114960,0.67072913,3068.1,3067.3,0.6515]
[1763544115147,0.71147228,3068.0,3067.0,0.1965]
[1763544115347,0.83376836,3067.8,3067.0,0.1965]
[1763544115566,0.67072913,3067.7,3067.0,0.1965]
[1763544115749,0.67072913,3067.6,3067.0,0.1965]
[1763544115952,0.67072913,3067.5,3067.0,0.1965]
[1763544116147,0.67072913,3067.4,3067.0,0.1965]
[1763544116359,0.67397822,3067.3,3066.5,0.4804]
[1763544116658,1.50774658,3067.2,3066.5,0.4804]
[1763544116956,0.67397822,3067.1,3066.5,0.4804]
[1763544117177,0.002,3066.9,3066.5,0.4804]
[1763544117354,1.50774658,3066.8,3066.5,0.4804]
[1763544117553,1.50774658,3066.8,3066.1,0.0958]
[1763544117554,0.83376836,3066.6,3066.1,0.0958]
[1763544117756,1.66752876,3066.3,3066.0,0.001]
[1763544118065,1.12663396,3066.1,3066.0,0.001]
[1763544118290,0.67397822,3066.1,3066.0,0.001]
[1763544118454,3.38187005,3066.1,3065.7,0.001]
[1763544118782,0.67397822,3066.0,3065.7,0.001]
[1763544118987,1.39169264,3066.6,3065.7,0.001]
[1763544118988,2.36888869,3065.9,3065.7,0.001]
[1763544119280,0.67317822,3065.8,3065.7,0.001]
[1763544119487,0.67317822,3065.8,3065.4,0.001]
[1763544119680,2.26919459,3065.8,3065.4,0.001]
[1763544120054,2.26919459,3065.6,3065.4,0.001]
[1763544120383,2.77937543,3065.5,3064.8,0.4804]